Cogmind - Beta 13 @@@ ROGUE MODE // 2024.05.07 @ 20:51:48 Player: RD-BNK(r) Result: Destroyed by S-27 Virus with Autogun Performance ------------- Evolutions (3) 1500 Regions Visited (7) 1400 Robots Destroyed (77) 385 Value Destroyed (1939) 1939 Prototype IDs (35) 700 Alien Tech Used (0) 0 Bonus (341) 341 TOTAL SCORE: 6265 Bonus ------- High Alert Combat Kills 42 Follower Combat Kills 39 Aligned with FarCom 300 Friendly Fire -40 Cogmind --------- Core Integrity 0/700 Matter 300/300 Energy 8/100 System Corruption 3% Temperature Cool (2) Movement Flying (32) Location -7/Lower Caves Parts ------- > --- POWER (1) -------- (None) > --- PROPULSION (4) --- Improved Cesium-ion Thruster Cooled VTOL Module > --- UTILITY (6) ------ Advanced Visual Processing Unit Improved Melee Analysis Suite Improved Light Armor Plating Hacking Suite Hacking Suite > --- WEAPON (2) ------- Great Axe > --- INVENTORY (5) ---- Advanced Weight Redist. System Improved Sensor Array Improved Trap Extractor (5/6 Shock) Greatsword Peak State ------------ > --- POWER ------------ Light Nuclear Core > --- PROPULSION ------- Improved Cesium-ion Thruster Cooled VTOL Module Cooled VTOL Module Cooled VTOL Module > --- UTILITY ---------- Improved Melee Analysis Suite Improved Melee Analysis Suite Improved Light Armor Plating Hacking Suite System Shield Trap Reconfigurator > --- WEAPON ----------- Greatsword > --- INVENTORY -------- Light Nuclear Core Improved Sensor Array Improved Melee Analysis Suite Precision Assault Rifle Heavy Missile Launcher [Rating: 58] Favorites ----------- Power Ion Engine Engine Ion Engine Power Core Light Nuclear Core Propulsion Light Treads Treads Light Treads Leg Aluminum Leg Wheel Wheel Hover Unit Gravmag System Flight Unit Cooled VTOL Module Utility Hacking Suite Device Structural Scanner Storage High-capacity Storage Unit Processor Improved Melee Analysis Suite Hackware Hacking Suite Protection Improved Light Armor Plating Weapon Bore Cannon Energy Gun Medium Laser Ballistic Gun Assault Rifle Ballistic Cannon Bore Cannon Launcher Grenade Launcher Impact Weapon Hammer Slashing Weapon Greatsword Piercing Weapon Spear Build | -11 -10 -10 -10 -9 -8 -7 -7 ------- Run | Yrd Mat Min Exi Min Mat Fac Low Slots Evolved 6 | . . . . . 4 2 . Power . | . . . . . . . . Propulsion 2 | . . . . . 2 . . Utility 4 | . . . . . 2 2 . Weapon . | . . . . . . . . Parts Attached 92 | 4 3 5 1 7 14 58 . Power 4 | . . . . . 1 3 . Engine 1 | . . . . . 1 . . Core 3 | . . . . . . 3 . Reactor . | . . . . . . . . Propulsion 20 | 2 . 2 . 2 3 11 . Treads 6 | 2 . . . 2 1 1 . Leg . | . . . . . . . . Wheel 7 | . . 2 . . 2 3 . Hover 1 | . . . . . . 1 . Flight 6 | . . . . . . 6 . Utility 39 | 1 2 . 1 3 2 30 . Device 14 | 1 1 . . 3 . 9 . Storage 8 | . 1 . 1 . . 6 . Processor 7 | . . . . . . 7 . Hackware 5 | . . . . . 1 4 . Protection 5 | . . . . . 1 4 . Artifact . | . . . . . . . . Weapon 29 | 1 1 3 . 2 8 14 . Energy Gun 1 | . 1 . . . . . . Energy Cannon . | . . . . . . . . Ballistic Gun 8 | 1 . 1 . . 1 5 . Ballistic Cannon 4 | . . . . . 3 1 . Launcher 7 | . . 1 . 1 2 3 . Special Weapon . | . . . . . . . . Impact Weapon 5 | . . 1 . . 2 2 . Slashing Weapon 3 | . . . . . . 3 . Piercing Weapon 1 | . . . . 1 . . . Special Melee Weapon . | . . . . . . . . Unidentified Prototypes 4 | . . . . . 1 3 . Corrupted Parts 2 | . . . . 2 . . . System Corruption 5 | . . . . 5 . . . Parts Lost 30 | . 1 2 . . 9 16 2 Power 4 | . . . . . 2 2 . Propulsion 12 | . . 2 . . 3 5 2 Utility 9 | . . . . . 3 6 . Weapon 5 | . 1 . . . 1 3 . Highest Loss Streak 8 | . 1 1 . . 7 8 2 To Critical Strikes 2 | . . . . . 1 1 . Average Slot Usage (%) 83 | . 99 99 100 99 91 66 85 Engine 6 | . 14 14 14 14 8 . . Core 1 | . . . . . . 3 2 Treads 8 | . 28 8 . 3 16 3 . Wheel 9 | . . 19 28 24 15 4 . Flight 5 | . . . . . . 9 28 Device 8 | . 14 14 14 13 7 4 . Storage 8 | . 14 14 14 14 9 3 6 Processor 5 | . . . . . . 10 15 Hackware 5 | . . . . . 7 10 15 Protection 1 | . . . . . 7 1 7 Energy Gun 3 | . 13 8 . . . . . Ballistic Gun 4 | . 14 6 . . 2 2 . Ballistic Cannon 1 | . . . . . 7 2 . Launcher 3 | . . 5 14 14 2 . . Impact Weapon 4 | . . 7 14 14 3 2 . Slashing Weapon 1 | . . . . . . 1 7 Naked Turns . | . . . . . . . . Heaviest Build 111 | 15 20 21 51 55 64 111 22 Greatest Support 40 | 40 40 40 26 40 40 38 26 Greatest Overweight (x) 9 | . . 1 1 2 2 9 5 Average Overweight (x) . | . . . . 1 1 . . Largest Inventory Capacity 25 | 8 10 10 20 20 20 25 10 Average Capacity 13 | 8 8 10 12 20 20 13 9 Most Carried 19 | 6 9 10 10 19 19 19 8 Average Carried 10 | 4 6 8 9 15 16 9 7 Final Capacity 20 | 8 10 10 20 20 20 10 5 Final Carried 18 | 4 9 9 10 18 17 8 5 Class Distribution -------------------- 73% | Mutant 14% | Hacker-Sprinter 7% | Scavenger-Mutant Dominant Class ---------------- Mutant | -10/Materials Mutant | -10/Mines Mutant | -10/Exiles Mutant | -9/Mines Mutant | -8/Materials Mutant | -7/Factory Hacker-Sprinter | -7/Lower Caves Resources | -11 -10 -10 -10 -9 -8 -7 -7 ----------- Run | Yrd Mat Min Exi Min Mat Fac Low Matter Collected 1719 | 200 218 82 . 27 184 1008 . Remotely . | . . . . . . . . Salvage Created 2261 | 24 454 115 . . 420 1248 . Parts 145 | 5 28 9 . . 26 77 . Haulers Intercepted 7 | . 2 . . . 2 3 . Recyclers Shooed 2 | . 1 . . . . 1 . Parts Field Recycled . | . . . . . . . . Retrieved Matter . | . . . . . . . . Parts Self-Destructed . | . . . . . . . . Prevented . | . . . . . . . . Kills | -11 -10 -10 -10 -9 -8 -7 -7 ------- Run | Yrd Mat Min Exi Min Mat Fac Low Combat Hostiles Destroyed 47 | . 11 9 . . 14 13 . Melee 4 | . . . . . 1 3 . Guns 24 | . 11 6 . . 1 6 . Cannons 3 | . . . . . 3 . . AOE 16 | . . 3 . . 9 4 . Classes Destroyed 15 | 1 5 . . . 5 4 . Worker 4 | . . . . . 1 3 . Builder 1 | . . . . . . 1 . Tunneler 2 | 1 . . . . 1 . . Hauler 7 | . 2 . . . 2 3 . Recycler 6 | . . . . . . 6 . Mechanic 1 | . . . . . 1 . . Operator 5 | . 1 . . . . 4 . Watcher 4 | . 2 . . . . 2 . Swarmer 19 | . 5 9 . . 5 . . Grunt 15 | . 6 . . . 5 4 . Brawler 2 | . . . . . 1 1 . Sentry 3 | . . . . . 2 1 . Specialist 1 | . . . . . 1 . . Hunter 2 | . . . . . . 2 . Programmer 5 | . . . . . . 5 . Best Kill Streak 13 | 1 4 3 . . 13 10 . Combat Bots Only 11 | . 2 3 . . 11 5 . Max Kills in Single Turn 6 | 1 1 3 . . 5 6 . Gunslinging . | . . . . . . . . Exploded 4 | . . 3 . . 4 3 . Melee 1 | . . . . . 1 1 . Uniques/NPCs Destroyed . | . . . . . . . . Combat | -11 -10 -10 -10 -9 -8 -7 -7 -------- Run | Yrd Mat Min Exi Min Mat Fac Low Hostile Shots Fired 452 | . 55 46 . . 70 252 29 Missed 132 | . 10 9 . . 20 76 17 Damage Taken 4217 | . 409 335 . 45 773 2521 134 Core 923 | . 97 66 . . 50 680 30 Absorbed by Shields . | . . . . . . . . Core Remaining (%) 74 | 100 . . . 34 90 . . Volleys Fired 146 | 1 50 17 . . 26 52 . Largest 2 | 2 2 2 . . 2 1 . Hottest 96 | 60 70 70 . . 96 57 . Shots Fired 211 | 2 94 32 . . 31 52 . Gun 174 | 2 94 30 . . 1 47 . Cannon 25 | . . . . . 24 1 . Launcher 12 | . . 2 . . 6 4 . Special . | . . . . . . . . Kinetic 139 | 1 50 15 . . 25 48 . Thermal 42 | . 27 15 . . . . . Explosive 12 | . . 2 . . 6 4 . Electromagnetic 18 | 1 17 . . . . . . Robot Hit Streak 19 | 1 9 5 . . 4 19 . Robot Miss Streak 5 | . 4 3 . . 5 5 . Penetration Max 1 | . . . . . 1 . . Secondary Targets 1 | . . 1 . . . . . Max Gunslinging Chain 1 | . . 1 . . . . . Shots Hit Robots 178 | 1 60 20 . . 18 77 2 Core Hits 112 | 1 23 12 . . 28 48 . Critical Kills 4 | . 1 . . . 3 . . Critical Parts Destroyed 7 | . . . . . 4 3 . Critical Strikes 20 | . 5 2 . . 8 5 . Burn 5 | . 3 2 . . . . . Destroy 9 | . 1 . . . 6 2 . Blast 1 | . . . . . 1 . . Corrupt 1 | . 1 . . . . . . Smash 2 | . . . . . 1 1 . Sever 2 | . . . . . . 2 . Melee Attacks 74 | . . 7 . . 8 57 2 Impact 33 | . . 7 . . 8 18 . Slashing 41 | . . . . . . 39 2 Piercing . | . . . . . . . . Sneak Attacks 14 | . . 2 . . 2 10 . Combat Hostiles 1 | . . . . . . 1 . Follow-up Attacks . | . . . . . . . . Damage Inflicted 6940 | 15 785 460 . . 1581 4015 84 Guns 1806 | 15 785 245 . . 16 745 . Cannons 279 | . . . . . 252 27 . Explosions 2035 | . . 119 . . 992 924 . Melee 2765 | . . 96 . . 307 2278 84 Ramming 55 | . . . . . 14 41 . Kinetic 1527 | . 367 120 . . 268 772 . Thermal 425 | . 300 125 . . . . . Explosive 2035 | . . 119 . . 992 924 . Electromagnetic 133 | 15 118 . . . . . . Impact 846 | . . 96 . . 307 443 . Slashing 1919 | . . . . . . 1835 84 Piercing . | . . . . . . . . Highest Corruption 12 | . . . . 5 12 11 3 Average Corruption 5 | . . . . 3 11 5 3 Corruption Purged 10 | . . . . . . 10 . Corruption Blocked . | . . . . . . . . Effects 62 | . . . . . 5 54 3 Message Errors 18 | . . . . . . 16 2 Matter Fused 12 | . . . . . . 12 . Heat Flow Errors 7 | . . . . . 2 4 1 Energy Discharges 7 | . . . . . 1 6 . Parts Rejected 1 | . . . . . 1 . . Parts Fused 1 | . . . . . . 1 . Data Loss (minor) 7 | . . . . . . 7 . Data Loss (major) 2 | . . . . . . 2 . Alerts 3 | . . . . . . 3 . Misdirections 3 | . . . . . . 3 . Weapon Failures 1 | . . . . . 1 . . Overload Shots . | . . . . . . . . Overflow Damage 603 | . . 16 . . 128 453 6 Projectiles . | . . . . . . . . Explosions 80 | . . . . . 3 77 . Melee 523 | . . 16 . . 125 376 6 Knockbacks 3 | . . 1 . . . 2 . Impact 3 | . . 1 . . . 2 . Kinetic . | . . . . . . . . Secondary . | . . . . . . . . Self-Inflicted Damage 604 | . . 35 . . 112 457 . Shots 13 | . . 1 . . 3 9 . Rammed 18 | . . . . . 1 17 . Targets Rammed 18 | . . . . . 1 17 . Kicked . | . . . . . . . . Crushed . | . . . . . . . . Highest Temperature 252 | . 81 120 . . 117 222 252 Average Temperature 44 | . 24 46 . . 34 80 103 Received Heat Transfer 615 | . 114 . . . 144 357 . Siege Activations . | . . . . . . . . Robots Corrupted . | . . . . . . . . Combat Hostiles . | . . . . . . . . Parts Fried 3 | . 1 . . . 1 1 . Impact Corruptions 10 | . . 2 . . 4 4 . Robots Melted . | . . . . . . . . Combat Hostiles . | . . . . . . . . Parts Melted 5 | . 5 . . . . . . Heat Transferred 1628 | . 1110 518 . . . . . Parts Sabotaged . | . . . . . . . . Parts Stolen 1 | . . . . . . . 1 Parts Stripped . | . . . . . . . . Power Chain Reactions . | . . . . . . . . Alert | -11 -10 -10 -10 -9 -8 -7 -7 ------- Run | Yrd Mat Min Exi Min Mat Fac Low Peak Influence 714 | 5 163 193 . . 324 714 . Initial 115 | . 3 24 . . . 115 . Average 130 | 2 84 90 . . 101 200 . Maximum Alert Level 3 | . . . . . 1 3 . Low Security (%) 81 | 100 100 100 . 100 84 65 . Level 1 7 | . . . . . 15 12 . Level 2 9 | . . . . . . 19 . Level 3 . | . . . . . . 1 . Level 4 . | . . . . . . . . Level 5 . | . . . . . . . . High Security . | . . . . . . . . Max Security . | . . . . . . . . Squads Dispatched 18 | . 4 . . . 4 10 . Investigation 9 | . 2 . . . 2 5 . Extermination 5 | . . . . . . 5 . Reinforcement 4 | . 2 . . . 2 . . Assault . | . . . . . . . . Garrison . | . . . . . . . . Intercept . | . . . . . . . . Searches Triggered 1 | . . . . . . 1 . Construction Impeded 1 | . . . . . 1 . . Haulers Reinforced . | . . . . . . . . Active Scanning Responses . | . . . . . . . . Cargo Convoy Interrupts . | . . . . . . . . Stealth | -11 -10 -10 -10 -9 -8 -7 -7 --------- Run | Yrd Mat Min Exi Min Mat Fac Low Distress Signals 10 | . 2 . . . 2 6 . Communications Jammed . | . . . . . . . . Distress Signals . | . . . . . . . . Times Spotted 104 | . 21 9 . . 21 41 12 Peak Tracking Total 12 | . 4 3 . . 12 8 6 Tactical Retreats 13 | . 1 . . . 2 7 3 Traps | -11 -10 -10 -10 -9 -8 -7 -7 ------- Run | Yrd Mat Min Exi Min Mat Fac Low Traps Triggered 5 | . 1 . . 1 1 2 . Indirectly . | . . . . . . . . Trap Hack Attempts . | . . . . . . . . Triggered . | . . . . . . . . Disarmed . | . . . . . . . . Reprogrammed . | . . . . . . . . Reused 3 | . . . . . . 3 . Traps Reconfigurated 23 | . . . . 1 . 22 . Traps Extracted 5 | . . . . . . 5 . Installed . | . . . . . . . . Triggered 3 | . . . . . . 3 . Most Traps Carried 5 | . . . . 3 3 5 5 Machines | -11 -10 -10 -10 -9 -8 -7 -7 ---------- Run | Yrd Mat Min Exi Min Mat Fac Low Machines Disabled 15 | . . . . . 2 13 . Max in Single Turn 7 | . . . . . 1 7 . Garrison Access 2 | . . . . . . 2 . Machines Repaired . | . . . . . . . . Machines Dismantled . | . . . . . . . . Machines Sabotaged . | . . . . . . . . Overloaded Fab Kills . | . . . . . . . . Hacking | -11 -10 -10 -10 -9 -8 -7 -7 --------- Run | Yrd Mat Min Exi Min Mat Fac Low Machines Accessed 34 | . 6 . 1 1 6 20 . Terminals 26 | . 6 . . . 6 14 . Fabricators 1 | . . . . . . 1 . Repair Stations . | . . . . . . . . Recycling Units 3 | . . . . . . 3 . Scanalyzers . | . . . . . . . . Garrison Access 2 | . . . . . . 2 . Total Hacks 97 | . 15 . 1 1 25 55 . Successful 42 | . 3 . 1 1 11 26 . Failed 54 | . 11 . . . 14 29 . Catastrophic 10 | . 1 . . . 1 8 . Database Lockouts 1 | . 1 . . . . . . Manual 63 | . 11 . 1 . 20 31 . Terminals 81 | . 15 . . . 25 41 . Fabricators 4 | . . . . . . 4 . Repair Stations . | . . . . . . . . Recycling Units 6 | . . . . . . 6 . Scanalyzers . | . . . . . . . . Garrison Access 4 | . . . . . . 4 . Terminal Hacks 20 | . 2 . 1 1 6 10 . Prototype ID Bank 4 | . 1 . . . 2 1 . Open Door 1 | . . . . 1 . . . Branch Access Points 1 | . . . . . . 1 . Emergency Access Points 1 | . . . . . . 1 . Terminal Index 2 | . . . . . 1 1 . Locate Traps 1 | . . . . . . 1 . Extermination Status 1 | . . . . . . 1 . Hauler Manifests 3 | . 1 . . . 1 1 . Registered Components 2 | . . . . . 1 1 . Registered Prototypes 1 | . . . . . . 1 . Zone Layout 2 | . . . . . 1 1 . Derelict Proto ID Bank 1 | . . . 1 . . . . Fabricator Hacks 1 | . . . . . . 1 . Network Status 1 | . . . . . . 1 . Repair Station Hacks . | . . . . . . . . Recycling Unit Hacks 4 | . . . . . . 4 . Report Inventory 1 | . . . . . . 1 . Retrieve Matter 1 | . . . . . . 1 . Retrieve Components 2 | . . . . . . 2 . Scanalyzer . | . . . . . . . . Garrison Access Hacks 2 | . . . . . . 2 . Seal Access 2 | . . . . . . 2 . Unauthorized Hacks 15 | . 1 . . . 5 9 . Terminals 13 | . 1 . . . 5 7 . Assimilate 4 | . . . . . 2 2 . Botnet 5 | . . . . . 2 3 . Operators 4 | . 1 . . . 1 2 . Fabricators 2 | . . . . . . 2 . Report 1 | . . . . . . 1 . Haulers 1 | . . . . . . 1 . Repair Stations . | . . . . . . . . Recycling Units . | . . . . . . . . Scanalyzers . | . . . . . . . . Garrison Access . | . . . . . . . . Data Cores Recovered 1 | . . . . . 1 . . Used . | . . . . . . . . Hacking Detections 25 | . 5 . . . 6 14 . Full Trace Events 7 | . 1 . . . 1 5 . Feedback Events . | . . . . . . . . Feedback Blocked . | . . . . . . . . Robot Schematics Acquired . | . . . . . . . . Robots Built . | . . . . . . . . Authchips . | . . . . . . . . Time . | . . . . . . . . Total Robot Build Rating . | . . . . . . . . Part Schematics Acquired . | . . . . . . . . Parts Built . | . . . . . . . . Authchips . | . . . . . . . . Time . | . . . . . . . . Total Part Build Rating . | . . . . . . . . Parts Repaired . | . . . . . . . . Time . | . . . . . . . . Parts Recycled . | . . . . . . . . Recycled Matter . | . . . . . . . . Retrieved Matter . | . . . . . . . . Retrieved Components 10 | . . . . . . 10 . Parts Scanalyzed . | . . . . . . . . Part Schematics Acquired . | . . . . . . . . Parts Damaged . | . . . . . . . . Bothacking | -11 -10 -10 -10 -9 -8 -7 -7 ------------ Run | Yrd Mat Min Exi Min Mat Fac Low Used RIF Installer . | . . . . . . . . Robots Hacked . | . . . . . . . . Non-combat . | . . . . . . . . Combat . | . . . . . . . . Robot Hacks Applied . | . . . . . . . . Relay Couplers Released . | . . . . . . . . Fabnet Peak Effective % . | . . . . . . . . Robots Rewired . | . . . . . . . . Allies Hacked . | . . . . . . . . Hacks Repelled . | . . . . . . . . Allies | -11 -10 -10 -10 -9 -8 -7 -7 -------- Run | Yrd Mat Min Exi Min Mat Fac Low Total Allies 6 | . . 1 . 3 . 2 . Largest Group 3 | . . 1 . 3 3 1 1 Highest-Rated Group 40 | . . 31 . 40 40 26 10 Highest-Rated Ally 31 | . . 31 . 16 16 26 10 Total Orders . | . . . . . . . . Ally Attacks 10 | . . 3 . . 7 . . Total Damage 57 | . . 21 . . 36 . . Kills 1 | . . 1 . . . . . Allies Corrupted . | . . . . . . . . Allies Melted . | . . . . . . . . Intel | -11 -10 -10 -10 -9 -8 -7 -7 ------- Run | Yrd Mat Min Exi Min Mat Fac Low Robot Analysis Total . | . . . . . . . . Derelict Logs Recovered 2 | . . 1 . 1 . . . Drone Launches . | . . . . . . . . Drone Recoveries . | . . . . . . . . Exploration | -11 -10 -10 -10 -9 -8 -7 -7 ------------- Run | Yrd Mat Min Exi Min Mat Fac Low Turns Passed 6906 | 47 1149 722 244 919 474 3225 126 Spaces Moved 5687 | 14 578 565 258 763 260 2936 313 Core 214 | . . . . . . 213 1 Treads 1035 | 14 578 96 . 49 10 288 . Legs . | . . . . . . . . Wheels 2170 | . . 469 258 714 250 479 . Hover 17 | . . . . . . 17 . Flight 2251 | . . . . . . 1939 312 Fastest Speed 17 | 160 160 90 90 105 105 17 20 Average Speed 91 | 160 160 102 93 113 126 73 28 Slowest Speed 320 | 160 160 160 105 240 320 320 300 Overloaded Moves 9 | . . . . . . 4 5 Propulsion Burnouts . | . . . . . . . . Robots Hopped 13 | . . . . . . 11 2 Cave-ins Triggered . | . . . . . . . . Exploration Rate (%) 62 | 2 96 98 68 99 26 70 42 Regions Visited 7 Branch Regions 4 Pre-discovered Areas 1 | . . 1 . . . . . Known Exits Taken 1 | . . . . . . 1 . Unknown Exits Taken 6 | 1 1 1 1 1 1 . . Scrap Searched 4 | . . 1 . 3 . . . Spaces Dug 86 | . . 3 . . 20 63 . Terrain Destroyed 194 | . . 21 . . 66 107 . Melee 24 | . . 3 . . 1 20 . Projectile 12 | . . . . . 12 . . AOE 158 | . . 18 . . 53 87 . Terrain Rammed . | . . . . . . . . Walls Destroyed . | . . . . . . . . Machines Disabled . | . . . . . . . . Actions | -11 -10 -10 -10 -9 -8 -7 -7 --------- Run | Yrd Mat Min Exi Min Mat Fac Low Total 7003 | 36 709 663 260 813 357 3821 344 Wait 896 | 16 68 66 . 35 37 644 30 Move 5654 | 13 577 564 257 762 259 2913 309 Hop 13 | . . . . . . 11 2 Pick Up 63 | . 8 3 1 8 8 35 . Fast Attach 42 | 1 . . . . 2 39 . Attach 20 | . 1 2 . 1 7 9 . Detach 5 | . . . . 1 . 4 . Swap 30 | 3 2 3 1 6 5 10 . Drop 42 | 2 3 1 1 . 4 30 1 Fire 146 | 1 50 17 . . 26 52 . Melee 74 | . . 7 . . 8 57 2 Ram 17 | . . . . . . 17 . Kick . | . . . . . . . . Crush 1 | . . . . . 1 . . Escape Stasis . | . . . . . . . . Rewire . | . . . . . . . . Trap . | . . . . . . . . Miscellaneous . | . . . . . . . . Route ------- -11/Scrapyard -10/Materials (discovered 6 exits: [*Mat x3] / [*Min x2] / [*Sub]) -10/Mines (discovered 3 exits: [*Mat x2] / *Exi) -10/Exiles -9/Mines (discovered 2 exits: *Mat x2) -8/Materials (discovered 2 exits: *Fac / Sto) -7/Factory (discovered 4 exits: [*Fac x2] / *Low x2) -7/Lower Caves History --------- Turn | Location | Event 21 | -11/Scrapyard | Discovered new exit (range 2) 48 | -11/Scrapyard | Entered Materials 182 | -10/Materials | Discovered new exit (range 9) 308 | -10/Materials | Build established: Mutant 357 | -10/Materials | Discovered new exit (range 14) 498 | -10/Materials | Discovered new exit (range 13) 548 | -10/Materials | Derelicts attacked the area 601 | -10/Materials | Central database locked down 915 | -10/Materials | Discovered new exit (range 5) 1034 | -10/Materials | Discovered new exit (range 13) 1110 | -10/Materials | Discovered new exit (range 8) 1197 | -10/Materials | Entered Mines 1239 | -10/Mines | Discovered new exit (range 11) 1289 | -10/Mines | Met a Derelict bent on vengeance 1369 | -10/Mines | Core integrity fell below 50% 1393 | -10/Mines | Learned location of Zion (-6) 1492 | -10/Mines | Received a Mining Laser from a helpful Derelict 1515 | -10/Mines | Assembled infested the area 1584 | -10/Mines | Discovered new exit (range 5) 1656 | -10/Mines | A weapon hastily lodged in a ceiling crevice suddenly fell to the ground 1784 | -10/Mines | Discovered new exit (range 6) 1919 | -10/Mines | Entered Exiles 1941 | -10/Exiles | Met 8R-AWN 1956 | -10/Exiles | Met EX-HEX 1982 | -10/Exiles | Met EX-BIN 1992 | -10/Exiles | Aligned with FarCom system 1992 | -10/Exiles | Given EX-Vault access code 2013 | -10/Exiles | Opened EX-Vault 2020 | -10/Exiles | Found Trap Reconfigurator 2038 | -10/Exiles | Warned to stay clear of 0b10 Research branches 2065 | -10/Exiles | Met EX-DEC 2151 | -10/Exiles | Discovered new exit (range 14) 2163 | -10/Exiles | Left Exiles lab with Trap Reconfigurator 2163 | -10/Exiles | Entered Mines 2326 | -9/Mines | Found a hidden stash of uninstalled traps 2398 | -9/Mines | Met a Derelict who couldn't figure out how to use a Trap Extractor 2473 | -9/Mines | Learned 4 Materials zone layouts 2516 | -9/Mines | Discovered new exit (range 15) 2578 | -9/Mines | Discovered new exit (range 12) 2754 | -9/Mines | Assisted by bots powering up and referring to "LRC-V3" 3082 | -9/Mines | Entered Materials 3082 | -8/Materials | Accompanied by 3 allies 3082 | -8/Materials | Evolved 4 slots: Propulsion x2, Utility x2 3083 | -8/Materials | Identified exit to Storage 3185 | -8/Materials | Lost 3 allies 3455 | -8/Materials | Discovered new exit (range 13) 3502 | -8/Materials | System corruption reached 10% 3529 | -8/Materials | Destroyed 11 combat bots 3539 | -8/Materials | Lost 7 parts (3n3u1w) 3556 | -8/Materials | Entered Factory 3556 | -7/Factory | Evolved 2 slots: Utility x2 4716 | -7/Factory | Core integrity fell below 50% 5183 | -7/Factory | Core integrity fell below 20% 5489 | -7/Factory | Build established: Scavenger-Mutant 5672 | -7/Factory | System corruption reached 10% 5738 | -7/Factory | Lost 8 parts (1p2n3u2w) 5744 | -7/Factory | Discovered new exit (range 15) 6010 | -7/Factory | Discovered new exit (range 14) 6181 | -7/Factory | Build established: Hacker-Sprinter 6485 | -7/Factory | Identified exit to Lower Caves 6756 | -7/Factory | Search patrols dispatched 6781 | -7/Factory | Entered Lower Caves 6781 | -7/Lower Caves | Accompanied by 1 ally 6783 | -7/Lower Caves | Attracted the attention of an 0b10 checkpoint 6907 | -7/Lower Caves | Destroyed by S-27 Virus with Autogun Last Messages --------------- 06764_ Acquired 20 matter. 06765_ K-01 Serf collects debris. 06766_ K-01 Serf cleans the Recycling Unit. 06768_ Acquired Great Axe. 06772_ K-01 Serf collects debris. 06777_ M5> Q#>#7EASREQFL 06823_ Slug penetrates JF-IYA(f). 06830_ Lgt. Nuclear Core ripped off. 06833_ Destroyed Cesium-ion Thruster. 06852_ System corrupted: Heat flow error (+264). 06868_ &B,IJGVADBQFCD IVWIFTL7